fUSD/lending_fUSD_20250905
["ID","MTS","AMOUNT","RATE_DAILY","PERIOD"]
[383675575,1757080288466,-317.74,0.00029041,2]
[383675576,1757080288476,-816.55,0.00029041,2]
[383675577,1757080288487,-450.0,0.00029041,5]
[383675578,1757080288498,-1332.69,0.00029109,2]
[383675579,1757080288508,-716.83,0.00029109,2]
[383675580,1757080288517,-3437.21,0.00029109,2]
[383675581,1757080288527,-400.0,0.00029109,2]
[383675582,1757080288537,-871.48886874,0.00029116,2]
[383675583,1757080288547,-2332.0,0.00029116,2]
[383675584,1757080288557,-181.22075999,0.00029131,15]
[383675585,1757080288568,-15512.75242784,0.00029184,2]
[383675586,1757080288578,-112779.51187,0.000292,7]
[383675587,1757080288588,-698.58516426,0.000292,7]
[383675588,1757080288597,-400.0,0.00029214,2]
[383675589,1757080288607,-425.55,0.00029214,2]
[383675590,1757080288617,-2516.71,0.00029214,2]
[383675591,1757080288627,-400.0,0.00029214,2]
[383675592,1757080288637,-400.0,0.00029214,2]
[383675593,1757080288647,-4574.52,0.00029214,2]
[383675594,1757080288656,-528.19,0.00029214,2]
[383675595,1757080288666,-1398.32,0.00029214,2]
[383675596,1757080288676,-850.97,0.00029214,2]
[383675597,1757080288686,-157.21794,0.00029214,2]
[383675598,1757080288696,-606.33,0.00029214,2]
[383675599,1757080288706,-500.0,0.00029253,15]
[383675600,1757080288715,-500.0,0.00029253,15]
[383675601,1757080288725,-548.1,0.00029271,2]
[383675602,1757080288735,-864.95,0.00029271,2]
[383675603,1757080288746,-468.64819317,0.00029271,2]
[383675604,1757080288755,-618.59,0.00029271,2]
[383675605,1757080288765,-435.11,0.00029271,2]
[383675606,1757080288775,-500.0,0.00029296,7]
[383675607,1757080288785,-3416.09,0.000293,7]
[383675608,1757080288795,-192.00992,0.00029309,2]
[383675609,1757080288806,-235.53272,0.00029313,2]
[383675610,1757080288816,-150.868106,0.00029313,2]
[383675611,1757080288826,-1177.68,0.00029313,2]
[383675612,1757080288836,-2245.68,0.00029313,2]
[383675613,1757080288845,-557.5,0.00029313,2]
[383675614,1757080288855,-1291.11,0.00029313,2]
[383675615,1757080288865,-400.0,0.00029313,2]
[383675616,1757080288875,-533.48114236,0.00029314,2]
[383675617,1757080288885,-400.0,0.00029314,2]
[383675618,1757080288895,-464.99554261,0.00029314,2]
[383675619,1757080288905,-400.0,0.00029314,2]
[383675620,1757080288915,-400.7,0.00029314,2]
[383675621,1757080288925,-459.99,0.00029314,2]
[383675622,1757080288935,-491.06,0.00029314,2]
[383675623,1757080288945,-691.23,0.00029314,2]
[383675624,1757080288954,-1702.49,0.00029314,2]
[383675625,1757080288964,-1927.13,0.00029314,2]
[383675626,1757080288974,-400.0,0.00029314,2]
[383675627,1757080288984,-413.14,0.00029314,2]
[383675628,1757080288996,-400.0,0.00029314,2]
[383675629,1757080289005,-400.0,0.00029314,2]
[383675630,1757080289015,-400.0,0.00029314,2]
[383675631,1757080289025,-835.85,0.00029314,2]
[383675632,1757080289035,-1036.34,0.00029314,2]
[383675633,1757080289045,-733.05,0.00029314,2]
[383675634,1757080289055,-1500.11,0.00029314,2]
[383675635,1757080289065,-956.58,0.00029314,2]
[383675636,1757080289075,-400.0,0.00029314,2]
[383675637,1757080289084,-400.0,0.00029314,2]
[383675638,1757080289095,-463.62,0.00029314,2]
[383675639,1757080289104,-820.22,0.00029314,2]
[383675640,1757080289114,-1070.14,0.00029314,2]
[383675641,1757080289124,-407.15,0.00029314,2]
[383675642,1757080289134,-1861.07,0.00029314,2]
[383675643,1757080289144,-400.0,0.00029315,2]
[383675644,1757080289154,-518.59,0.00029315,2]
[383675645,1757080289163,-455.55,0.00029315,2]
[383675646,1757080289173,-778.08,0.00029315,2]
[383675647,1757080289184,-481.02,0.00029315,2]
[383675648,1757080289194,-400.0,0.00029315,2]
[383675649,1757080289206,-400.0,0.00029315,2]
[383675650,1757080289216,-400.0,0.00029315,2]
[383675651,1757080289226,-533.63,0.00029315,2]
[383675652,1757080289236,-638.3,0.00029315,2]
[383675653,1757080289246,-1880.91,0.00029315,2]
[383675654,1757080289255,-810.2,0.00029315,2]
[383675655,1757080289266,-510.36,0.00029315,2]
[383675656,1757080289276,-415.61,0.00029315,2]
[383675657,1757080289286,-404.52,0.00029315,2]
[383675658,1757080289296,-403.55431178,0.00029315,2]
[383675659,1757080289445,-1096.06,0.00029315,2]
[383675660,1757080289456,-816.55,0.00029315,2]
[383675661,1757080289466,-1332.69,0.00029383,2]
[383675662,1757080289477,-716.83,0.00029383,2]
[383675663,1757080289489,-3437.21,0.00029383,2]
[383675664,1757080289500,-400.0,0.00029383,2]
[383675665,1757080289512,-174.58777119,0.00029388,2]
[383675666,1757080289521,-77022.75,0.000294,7]
[383675667,1757080289532,-150000.0,0.0002944,2]
[383675668,1757080289541,-400.0,0.00029488,2]
[383675669,1757080289552,-425.55,0.00029488,2]
[383675670,1757080289564,-2516.71,0.00029488,2]
[383675671,1757080289574,-400.0,0.00029488,2]
[383675672,1757080289583,-400.0,0.00029488,2]
[383675673,1757080289594,-4574.52,0.00029488,2]
[383675674,1757080289604,-528.19,0.00029488,2]
[383675675,1757080289613,-1398.32,0.00029488,2]
[383675676,1757080289623,-850.97,0.00029488,2]
[383675677,1757080289634,-606.33,0.00029488,2]
[383675678,1757080289644,-152.0,0.00029506,6]
[383675679,1757080289655,-500.0,0.00029527,15]
[383675680,1757080289664,-500.0,0.00029527,15]
[383675681,1757080289674,-548.1,0.00029545,2]
[383675682,1757080289684,-864.95,0.00029545,2]
[383675683,1757080289693,-618.59,0.00029545,2]
[383675684,1757080289703,-435.11,0.00029545,2]
[383675685,1757080289712,-235.53272,0.00029587,2]
[383675686,1757080289722,-150.868106,0.00029587,2]
[383675687,1757080289731,-1177.68,0.00029587,2]
[383675688,1757080289740,-2245.68,0.00029587,2]
[383675689,1757080289750,-557.5,0.00029587,2]
[383675690,1757080289759,-1291.11,0.00029587,2]
[383675691,1757080289769,-400.0,0.00029587,2]
[383675692,1757080289780,-400.0,0.00029588,2]
[383675693,1757080289790,-438.7457912,0.00029588,2]
[383675694,1757080289801,-400.7,0.00029588,2]
[383675695,1757080289811,-459.99,0.00029588,2]
[383675696,1757080289821,-491.06,0.00029588,2]
[383675697,1757080289830,-691.23,0.00029588,2]
[383675698,1757080289840,-1702.49,0.00029588,2]
[383675699,1757080289851,-1927.13,0.00029588,2]
[383675700,1757080289860,-400.0,0.00029588,2]
[383675701,1757080289870,-413.14,0.00029588,2]
[383675702,1757080289880,-400.0,0.00029588,2]
[383675703,1757080289889,-400.0,0.00029588,2]
[383675704,1757080289899,-400.0,0.00029588,2]
[383675705,1757080289909,-835.85,0.00029588,2]
[383675706,1757080289918,-1036.34,0.00029588,2]
[383675707,1757080289927,-733.05,0.00029588,2]
[383675708,1757080289937,-1500.11,0.00029588,2]
[383675709,1757080289946,-956.58,0.00029588,2]
[383675710,1757080289956,-400.0,0.00029588,2]
[383675711,1757080289965,-400.0,0.00029588,2]
[383675712,1757080289975,-463.62,0.00029588,2]
[383675713,1757080289985,-820.22,0.00029588,2]
[383675714,1757080289995,-1070.14,0.00029588,2]
[383675715,1757080290005,-407.15,0.00029588,2]
[383675716,1757080290014,-1861.07,0.00029588,2]
[383675717,1757080290023,-400.0,0.00029589,2]
[383675718,1757080290033,-518.59,0.00029589,2]
[383675719,1757080290042,-455.55,0.00029589,2]
[383675720,1757080290053,-778.08,0.00029589,2]
[383675721,1757080290062,-481.02,0.00029589,2]
[383675722,1757080290072,-400.0,0.00029589,2]
[383675723,1757080290082,-400.0,0.00029589,2]
[383675724,1757080290091,-400.0,0.00029589,2]
[383675725,1757080290101,-533.63,0.00029589,2]
[383675726,1757080290110,-638.3,0.00029589,2]
[383675727,1757080290119,-1880.91,0.00029589,2]
[383675728,1757080290129,-810.2,0.00029589,2]
[383675729,1757080290138,-510.36,0.00029589,2]
[383675730,1757080290148,-415.61,0.00029589,2]
[383675731,1757080290157,-404.52,0.00029589,2]
[383675732,1757080290166,-1096.06,0.00029589,2]
[383675733,1757080290175,-816.55,0.00029589,2]
[383675734,1757080290185,-550.0,0.00029589,5]
[383675735,1757080290195,-12526.54,0.000296,7]
[383675736,1757080290205,-516.0,0.00029654,4]
[383675737,1757080290215,-1332.69,0.00029657,2]
[383675738,1757080290224,-716.83,0.00029657,2]
[383675739,1757080290234,-3437.21,0.00029657,2]
[383675740,1757080290244,-400.0,0.00029657,2]
[383675741,1757080290253,-353.26,0.000297,7]
[383675742,1757080290262,-353.45,0.000297,7]
[383675743,1757080290272,-15512.75242784,0.00029762,2]
[383675744,1757080290281,-400.0,0.00029762,2]
[383675745,1757080290291,-425.55,0.00029762,2]
[383675746,1757080290301,-2516.71,0.00029762,2]
[383675747,1757080290310,-400.0,0.00029762,2]
[383675748,1757080290320,-400.0,0.00029762,2]
[383675749,1757080290330,-4574.52,0.00029762,2]
[383675750,1757080290339,-528.19,0.00029762,2]
[383675751,1757080290348,-1398.32,0.00029762,2]
[383675752,1757080290357,-850.97,0.00029762,2]
[383675753,1757080290367,-157.21794,0.00029762,2]
[383675754,1757080290376,-606.33,0.00029762,2]
[383675755,1757080290386,-500.0,0.00029801,15]
[383675756,1757080290395,-500.0,0.00029801,15]
[383675757,1757080290404,-548.1,0.00029819,2]
[383675758,1757080290413,-864.95,0.00029819,2]
[383675759,1757080290423,-618.59,0.00029819,2]
[383675760,1757080290432,-435.11,0.00029819,2]
[383675761,1757080290442,-174.52,0.00029823,30]
[383675762,1757080290452,-188.18,0.00029823,30]
[383675763,1757080290462,-2300.0,0.00029844,7]
[383675764,1757080290472,-800.0,0.00029844,7]
[383675765,1757080290481,-235.53272,0.00029861,2]
[383675766,1757080290494,-150.868106,0.00029861,2]
[383675767,1757080290504,-1177.68,0.00029861,2]
[383675768,1757080290513,-2245.68,0.00029861,2]
[383675769,1757080290523,-557.5,0.00029861,2]
[383675770,1757080290532,-1291.11,0.00029861,2]
[383675771,1757080290542,-289.9,0.00029861,2]
[383675772,1757080290554,-400.0,0.00029862,2]
[383675773,1757080290564,-400.7,0.00029862,2]
[383675774,1757080290574,-459.99,0.00029862,2]
[383675775,1757080290584,-491.06,0.00029862,2]
[383675776,1757080290593,-691.23,0.00029862,2]
[383675777,1757080290603,-1702.49,0.00029862,2]
[383675778,1757080290613,-1927.13,0.00029862,2]
[383675779,1757080290623,-400.0,0.00029862,2]
[383675780,1757080290632,-413.14,0.00029862,2]
[383675781,1757080290642,-400.0,0.00029862,2]
[383675782,1757080290652,-400.0,0.00029862,2]
[383675783,1757080290661,-400.0,0.00029862,2]
[383675784,1757080290671,-835.85,0.00029862,2]
[383675785,1757080290680,-1036.34,0.00029862,2]
[383675786,1757080290690,-733.05,0.00029862,2]
[383675787,1757080290700,-1500.11,0.00029862,2]
[383675788,1757080290709,-956.58,0.00029862,2]
[383675789,1757080290719,-400.0,0.00029862,2]
[383675790,1757080290728,-229.55299151,0.00029862,2]
[383675791,1757080290737,-463.62,0.00029862,2]
[383675792,1757080290747,-820.22,0.00029862,2]
[383675793,1757080290757,-1070.14,0.00029862,2]
[383675794,1757080290766,-407.15,0.00029862,2]
[383675795,1757080290775,-1861.07,0.00029862,2]
[383675796,1757080290784,-400.0,0.00029863,2]
[383675797,1757080290794,-518.59,0.00029863,2]
[383675798,1757080290804,-455.55,0.00029863,2]
[383675799,1757080290813,-778.08,0.00029863,2]
[383675800,1757080290823,-481.02,0.00029863,2]
[383675801,1757080290832,-245.96020368,0.00029863,2]
[383675802,1757080290842,-400.0,0.00029863,2]
[383675803,1757080290851,-400.0,0.00029863,2]
[383675804,1757080290861,-533.63,0.00029863,2]
[383675805,1757080290871,-638.3,0.00029863,2]
[383675806,1757080290880,-1880.91,0.00029863,2]
[383675807,1757080290890,-810.2,0.00029863,2]
[383675808,1757080290900,-510.36,0.00029863,2]
[383675809,1757080290910,-415.61,0.00029863,2]
[383675810,1757080290920,-404.52,0.00029863,2]
[383675811,1757080290929,-1096.06,0.00029863,2]
[383675812,1757080290940,-816.55,0.00029863,2]
[383675813,1757080290950,-300.0,0.000299,30]
[383675814,1757080290960,-229.49847026,0.000299,2]
[383675815,1757080290969,-200.0,0.00029916,2]
[383675816,1757080290980,-1332.69,0.00029931,2]
[383675817,1757080290990,-716.83,0.00029931,2]
[383675818,1757080291002,-3437.21,0.00029931,2]
[383675819,1757080291011,-497.17477886,0.00029931,2]
[383675820,1757080291021,-232.46948577,0.0002999,2]
[383675821,1757080291030,-19474.60642487,0.0003,2]
[383675822,1757080291040,-1778.99977772,0.0003,2]
[383675823,1757080291050,-981.05926567,0.0003,2]
[383675824,1757080291060,-601.04087757,0.0003,2]
[383675825,1757080291069,-1000.0,0.0003,6]
[383675826,1757080291079,-503.6,0.0003,5]
[383675827,1757080291091,-3250.0,0.0003,2]
[383675828,1757080291103,-3250.0,0.0003,3]
[383675829,1757080291112,-250.0,0.0003,7]
[383675830,1757080291121,-59528.02,0.0003,7]
[383675831,1757080291131,-33900.0,0.0003,30]
[383675832,1757080291142,-222.43115067,0.0003,29]
[383675833,1757080291151,-34651.36,0.0003,2]
[383675834,1757080291160,-145011.02669156,0.0003,5]
[383675835,1757080291171,-1503.016457,0.0003,2]
[383675836,1757080291181,-3010.69135387,0.0003,30]
[383675837,1757080291190,-4000.0,0.0003,4]
[383675838,1757080291199,-287.61899177,0.00030018,2]
[383675839,1757080291209,-180.0,0.0003002,2]
[383675840,1757080291218,-400.0,0.00030036,2]
[383675841,1757080291227,-425.55,0.00030036,2]
[383675842,1757080291236,-2516.71,0.00030036,2]
[383675843,1757080291245,-157.04783397,0.00030036,2]
[383675844,1757080291255,-4574.52,0.00030036,2]
[383675845,1757080291264,-528.19,0.00030036,2]
[383675846,1757080291273,-1398.32,0.00030036,2]
[383675847,1757080291283,-850.97,0.00030036,2]
[383675848,1757080291292,-157.21794,0.00030036,2]
[383675849,1757080291405,-606.33,0.00030036,2]
[383675850,1757080291426,-5479.16953803,0.00030046,13]
[383675851,1757080291435,-500.0,0.00030075,15]
[383675852,1757080291445,-500.0,0.00030075,15]
[383675853,1757080291455,-548.1,0.00030093,2]
[383675854,1757080291465,-864.95,0.00030093,2]
[383675855,1757080291477,-618.59,0.00030093,2]
[383675856,1757080291489,-435.11,0.00030093,2]
[383675857,1757080291498,-305.86126396,0.0003013,2]
[383675858,1757080291508,-201.1746063,0.0003013,2]
[383675859,1757080291517,-7573.13816057,0.0003013,2]
[383675860,1757080291527,-199.1302653,0.0003013,2]
[383675861,1757080291537,-192488.47453366,0.0003013,2]
[383675862,1757080291547,-13563.76617551,0.0003013,2]
[383675863,1757080291557,-197.54680424,0.0003013,2]
[383675864,1757080291566,-235.53272,0.00030135,2]
[383675865,1757080291575,-150.868106,0.00030135,2]
[383675866,1757080291585,-1177.68,0.00030135,2]
[383675867,1757080291594,-2245.68,0.00030135,2]
[383675868,1757080291604,-557.5,0.00030135,2]
[383675869,1757080291616,-1291.11,0.00030135,2]
[383675870,1757080291627,-400.0,0.00030136,2]
[383675871,1757080291637,-518.59,0.00030136,2]
[383675872,1757080291647,-455.55,0.00030136,2]
[383675873,1757080291656,-778.08,0.00030136,2]
[383675874,1757080291666,-400.0,0.00030136,2]
[383675875,1757080291676,-481.02,0.00030136,2]
[383675876,1757080291685,-400.0,0.00030136,2]
[383675877,1757080291695,-400.0,0.00030136,2]
[383675878,1757080291704,-533.63,0.00030136,2]
[383675879,1757080291714,-638.3,0.00030136,2]
[383675880,1757080291724,-1880.91,0.00030136,2]
[383675881,1757080291733,-810.2,0.00030136,2]
[383675882,1757080291743,-400.7,0.00030136,2]
[383675883,1757080291752,-510.36,0.00030136,2]
[383675884,1757080291761,-415.61,0.00030136,2]
[383675885,1757080291771,-459.99,0.00030136,2]
[383675886,1757080291781,-404.52,0.00030136,2]
[383675887,1757080291791,-491.06,0.00030136,2]
[383675888,1757080291805,-691.23,0.00030136,2]
[383675889,1757080291815,-1702.49,0.00030136,2]
[383675890,1757080291825,-1096.06,0.00030136,2]
[383675891,1757080291835,-1927.13,0.00030136,2]
[383675892,1757080291844,-400.0,0.00030136,2]
[383675893,1757080291854,-413.14,0.00030136,2]
[383675894,1757080291864,-400.0,0.00030136,2]
[383675895,1757080291874,-400.0,0.00030136,2]
[383675896,1757080291883,-400.0,0.00030136,2]
[383675897,1757080291893,-835.85,0.00030136,2]
[383675898,1757080291903,-1036.34,0.00030136,2]
[383675899,1757080291913,-733.05,0.00030136,2]
[383675900,1757080291925,-1500.11,0.00030136,2]
[383675901,1757080291935,-956.58,0.00030136,2]
[383675902,1757080291946,-816.55,0.00030136,2]
[383675903,1757080291956,-400.0,0.00030136,2]
[383675904,1757080291966,-463.62,0.00030136,2]
[383675905,1757080291978,-820.22,0.00030136,2]
[383675906,1757080291988,-1070.14,0.00030136,2]
[383675907,1757080291999,-407.15,0.00030136,2]
[383675908,1757080292009,-1861.07,0.00030136,2]
[383675909,1757080292019,-650.0,0.00030137,5]
[383675910,1757080292029,-167.56689422,0.00030137,120]
[383675911,1757080292039,-200.0,0.00030137,120]
[383675912,1757080292050,-2185.0,0.00030137,120]
[383675913,1757080292061,-194.0,0.00030137,120]
[383675914,1757080292071,-451.0,0.00030137,120]
[383675915,1757080292081,-500.0,0.00030137,7]
[383675916,1757080292091,-500.0,0.00030137,7]
[383675917,1757080292101,-1700.0,0.00030137,7]
[383675918,1757080292111,-506.42019514,0.00030137,7]
[383675919,1757080292123,-500.83733438,0.00030137,7]
[383675920,1757080292133,-1200.0,0.00030137,7]
[383675921,1757080292144,-560.44338692,0.00030137,7]
[383675922,1757080292154,-500.0,0.00030137,7]
[383675923,1757080292165,-500.0,0.00030137,7]
[383675924,1757080292175,-168.18112244,0.00030137,7]
[383675925,1757080292186,-500.0,0.00030137,7]
[383675926,1757080292196,-810.0,0.00030137,7]
[383675927,1757080292206,-1700.0,0.00030137,7]
[383675928,1757080292217,-500.0,0.00030137,7]
[383675929,1757080292226,-500.0,0.00030137,7]
[383675930,1757080292236,-500.0,0.00030137,7]
[383675931,1757080292248,-500.0,0.00030137,7]
[383675932,1757080292258,-500.0,0.00030137,7]
[383675933,1757080292269,-1700.0,0.00030137,7]
[383675934,1757080292278,-1200.0,0.00030137,7]
[383675935,1757080292290,-500.0,0.00030137,7]
[383675936,1757080292300,-500.0,0.00030137,7]
[383675937,1757080292310,-218.73871622,0.00030137,7]
[383675938,1757080292320,-500.0,0.00030137,7]
[383675939,1757080292329,-500.0,0.00030137,7]
[383675940,1757080292339,-1700.0,0.00030137,7]
[383675941,1757080292348,-500.0,0.00030137,7]
[383675942,1757080292358,-500.7,0.00030137,7]
[383675943,1757080292368,-1200.0,0.00030137,7]
[383675944,1757080292378,-500.0,0.00030137,7]
[383675945,1757080292387,-500.0,0.00030137,7]
[383675946,1757080292397,-500.0,0.00030137,7]
[383675947,1757080292407,-1700.0,0.00030137,7]
[383675948,1757080292416,-500.0,0.00030137,7]
[383675949,1757080292426,-1200.0,0.00030137,7]
[383675950,1757080292436,-500.0,0.00030137,7]
[383675951,1757080292446,-500.0,0.00030137,7]
[383675952,1757080292456,-1700.0,0.00030137,7]
[383675953,1757080292466,-500.0,0.00030137,7]
[383675954,1757080292476,-500.0,0.00030137,7]
[383675955,1757080292486,-1700.0,0.00030137,7]
[383675956,1757080292499,-500.0,0.00030137,7]
[383675957,1757080292508,-312.21193696,0.00030137,7]
[383675958,1757080292518,-1400.0,0.00030137,7]
[383675959,1757080292527,-500.0,0.00030137,7]
[383675960,1757080292537,-1700.0,0.00030137,7]
[383675961,1757080292547,-500.0,0.00030137,7]
[383675962,1757080292560,-1200.0,0.00030137,7]
[383675963,1757080292570,-1400.0,0.00030137,7]
[383675964,1757080292580,-500.0,0.00030137,7]
[383675965,1757080292589,-961.38609621,0.00030137,7]
[383675966,1757080292599,-1700.0,0.00030137,7]
[383675967,1757080292609,-500.0,0.00030137,7]
[383675968,1757080292619,-500.0,0.00030137,7]
[383675969,1757080292628,-500.0,0.00030137,7]
[383675970,1757080292638,-1400.0,0.00030137,7]
[383675971,1757080292647,-1700.0,0.00030137,7]
[383675972,1757080292656,-500.0,0.00030137,7]
[383675973,1757080292666,-1200.0,0.00030137,7]
[383675974,1757080292675,-500.0,0.00030137,7]
[383675975,1757080292685,-500.0,0.00030137,7]
[383675976,1757080292694,-1400.0,0.00030137,7]
[383675977,1757080292704,-427.85149818,0.00030137,7]
[383675978,1757080292714,-500.0,0.00030137,7]
[383675979,1757080292724,-1700.0,0.00030137,7]
[383675980,1757080292733,-1200.0,0.00030137,7]
[383675981,1757080292743,-500.0,0.00030137,7]
[383675982,1757080292752,-1400.0,0.00030137,7]
[383675983,1757080292762,-500.0,0.00030137,7]
[383675984,1757080292772,-1700.0,0.00030137,7]
[383675985,1757080292781,-500.0,0.00030137,7]
[383675986,1757080292791,-500.0,0.00030137,7]
[383675987,1757080292802,-721.28960847,0.00030137,7]
[383675988,1757080292812,-500.0,0.00030137,7]
[383675989,1757080292821,-1200.0,0.00030137,7]
[383675990,1757080292831,-500.0,0.00030137,7]
[383675991,1757080292840,-500.0,0.00030137,7]
[383675992,1757080292849,-500.0,0.00030137,7]
[383675993,1757080292858,-500.0,0.00030137,7]
[383675994,1757080292867,-1700.0,0.00030137,7]
[383675995,1757080292875,-573.69819831,0.00030137,7]
[383675996,1757080292883,-1200.0,0.00030137,7]
[383675997,1757080292893,-500.0,0.00030137,7]
[383675998,1757080292903,-1400.0,0.00030137,7]
[383675999,1757080292912,-500.0,0.00030137,7]
[383676000,1757080292922,-196.35202683,0.00030137,7]
[383676001,1757080292931,-600.53406039,0.00030137,7]
[383676002,1757080292941,-500.0,0.00030137,7]
[383676003,1757080292951,-500.0,0.00030137,7]
[383676004,1757080292961,-1400.0,0.00030137,7]
[383676005,1757080292971,-1700.0,0.00030137,7]
[383676006,1757080292980,-1200.0,0.00030137,7]
[383676007,1757080292990,-500.0,0.00030137,7]
[383676008,1757080292999,-500.0,0.00030137,7]
[383676009,1757080293009,-1400.0,0.00030137,7]
[383676010,1757080293019,-1700.0,0.00030137,7]
[383676011,1757080293028,-1400.0,0.00030137,7]
[383676012,1757080293038,-500.0,0.00030137,7]
[383676013,1757080293047,-1200.0,0.00030137,7]
[383676014,1757080293059,-500.0,0.00030137,7]
[383676015,1757080293068,-500.0,0.00030137,7]
[383676016,1757080293078,-1400.0,0.00030137,7]
[383676017,1757080293088,-152.66251733,0.00030137,7]
[383676018,1757080293098,-1700.0,0.00030137,7]
[383676019,1757080293108,-1200.0,0.00030137,7]
[383676020,1757080293117,-1400.0,0.00030137,7]
[383676021,1757080293127,-500.0,0.00030137,7]
[383676022,1757080293137,-500.0,0.00030137,7]
[383676023,1757080293146,-500.0,0.00030137,7]
[383676024,1757080293156,-1700.0,0.00030137,7]
[383676025,1757080293286,-1400.0,0.00030137,7]
[383676026,1757080293296,-500.0,0.00030137,7]
[383676027,1757080293307,-1200.0,0.00030137,7]
[383676028,1757080293317,-1400.0,0.00030137,7]
[383676029,1757080293327,-1700.0,0.00030137,7]
[383676030,1757080293337,-500.0,0.00030137,7]
[383676031,1757080293348,-617.89901712,0.00030137,7]
[383676032,1757080293357,-500.0,0.00030137,7]
[383676033,1757080293368,-1400.0,0.00030137,7]
[383676034,1757080293378,-1200.0,0.00030137,7]
[383676035,1757080293388,-1400.0,0.00030137,7]
[383676036,1757080293398,-1700.0,0.00030137,7]
[383676037,1757080293408,-500.0,0.00030137,7]
[383676038,1757080293418,-994.59127981,0.00030137,7]
[383676039,1757080293428,-500.0,0.00030137,7]
[383676040,1757080293438,-500.0,0.00030137,7]
[383676041,1757080293448,-166.5953983,0.00030137,7]
[383676042,1757080293459,-1400.0,0.00030137,7]
[383676043,1757080293469,-500.0,0.00030137,7]
[383676044,1757080293479,-500.0,0.00030137,7]
[383676045,1757080293494,-1200.0,0.00030137,7]
[383676046,1757080293504,-1700.0,0.00030137,7]
[383676047,1757080293514,-1200.0,0.00030137,7]
[383676048,1757080293524,-500.0,0.00030137,7]
[383676049,1757080293535,-1400.0,0.00030137,7]
[383676050,1757080293544,-500.0,0.00030137,7]
[383676051,1757080293555,-1400.0,0.00030137,7]
[383676052,1757080293565,-500.0,0.00030137,7]
[383676053,1757080293575,-1300.0,0.00030137,7]
[383676054,1757080293584,-1200.0,0.00030137,7]
[383676055,1757080293594,-687.06947383,0.00030137,7]
[383676056,1757080293603,-1200.0,0.00030137,7]
[383676057,1757080293613,-500.0,0.00030137,7]
[383676058,1757080293622,-1400.0,0.00030137,7]
[383676059,1757080293632,-1700.0,0.00030137,7]
[383676060,1757080293641,-500.0,0.00030137,7]
[383676061,1757080293651,-1400.0,0.00030137,7]
[383676062,1757080293660,-1200.0,0.00030137,7]
[383676063,1757080293669,-500.0,0.00030137,7]
[383676064,1757080293679,-1200.0,0.00030137,7]
[383676065,1757080293689,-1300.0,0.00030137,7]
[383676066,1757080293698,-500.0,0.00030137,7]
[383676067,1757080293708,-1400.0,0.00030137,7]
[383676068,1757080293718,-1700.0,0.00030137,7]
[383676069,1757080293727,-1200.0,0.00030137,7]
[383676070,1757080293737,-500.0,0.00030137,7]
[383676071,1757080293747,-1300.0,0.00030137,7]
[383676072,1757080293756,-983.87461363,0.00030137,7]
[383676073,1757080293766,-500.0,0.00030137,7]
[383676074,1757080293776,-663.64447555,0.00030137,7]